[Event "*** Titled Tuesday Blitz"]
[Site "Chess.com"]
[Date "2021.04.27"]
[Round "7"]
[White "AldokhinIvan"]
[Black "PavelChernomordik"]
[Result "1-0"]
[WhiteElo "2542"]
[BlackElo "2384"]
[TimeControl "180+1"]
[EndTime "11:16:48 PDT"]
[Termination "AldokhinIvan won on time"]

1. e4 {[%clk 0:03:00.9]} 1... g6 {[%clk 0:02:59.1]} 2. d4 {[%clk 0:03:01]} 2...
Bg7 {[%clk 0:02:58.5]} 3. Nc3 {[%clk 0:03:01.9]} 3... d6 {[%clk 0:02:58.2]} 4.
Bg5 {[%clk 0:03:00.3]} 4... h6 {[%clk 0:02:56.2]} 5. Bh4 {[%clk 0:02:56.5]} 5...
c5 {[%clk 0:02:55.7]} 6. dxc5 {[%clk 0:02:54.7]} 6... Qa5 {[%clk 0:02:54.9]} 7.
Ne2 {[%clk 0:02:54.6]} 7... Qxc5 {[%clk 0:02:54.1]} 8. f4 {[%clk 0:02:52.6]}
8... Bg4 {[%clk 0:02:40.5]} 9. Nd5 {[%clk 0:02:47.4]} 9... Qc8 {[%clk
0:02:22.4]} 10. Qd2 {[%clk 0:02:36.4]} 10... Nc6 {[%clk 0:02:17.3]} 11. O-O-O
{[%clk 0:02:35.1]} 11... Be6 {[%clk 0:01:40.4]} 12. f5 {[%clk 0:02:27.1]} 12...
gxf5 {[%clk 0:01:30.5]} 13. exf5 {[%clk 0:02:23.8]} 13... Bxf5 {[%clk
0:01:25.5]} 14. Ng3 {[%clk 0:02:22.8]} 14... Bg4 {[%clk 0:01:16.6]} 15. Be2
{[%clk 0:02:03.4]} 15... Be6 {[%clk 0:01:15.4]} 16. Nf4 {[%clk 0:01:31.8]} 16...
Bxa2 {[%clk 0:01:13.8]} 17. Bb5 {[%clk 0:01:09.1]} 17... a6 {[%clk 0:01:09.2]}
18. Bxc6+ {[%clk 0:01:08.1]} 18... Qxc6 {[%clk 0:01:07.4]} 19. Rhe1 {[%clk
0:01:00.7]} 19... O-O-O {[%clk 0:01:05.5]} 20. Nf5 {[%clk 0:00:55.8]} 20... Be5
{[%clk 0:01:03.4]} 21. Rxe5 {[%clk 0:00:41.8]} 21... f6 {[%clk 0:00:46.6]} 22.
Rxe7 {[%clk 0:00:36.5]} 22... Kb8 {[%clk 0:00:40.6]} 23. Re3 {[%clk 0:00:28]}
23... Qc8 {[%clk 0:00:32.4]} 24. Nxd6 {[%clk 0:00:21.3]} 24... Qg4 {[%clk
0:00:31.6]} 25. Bg3 {[%clk 0:00:20]} 25... h5 {[%clk 0:00:23.5]} 26. Qb4 {[%clk
0:00:19.8]} 26... Qd7 {[%clk 0:00:21.8]} 27. Red3 {[%clk 0:00:14.6]} 27... Ne7
{[%clk 0:00:16.7]} 28. Nxb7 {[%clk 0:00:12.9]} 28... Qxb7 {[%clk 0:00:12]} 29.
Rxd8+ {[%clk 0:00:11.2]} 29... Rxd8 {[%clk 0:00:10.9]} 30. Rxd8+ {[%clk
0:00:10.7]} 30... Nc8 {[%clk 0:00:11.5]} 31. Nd5+ {[%clk 0:00:09.2]} 31... Ka8
{[%clk 0:00:06.9]} 32. Nb6+ {[%clk 0:00:06.1]} 1-0

[Event "*** Titled Tuesday Blitz"]
[Site "Chess.com"]
[Date "2021.04.27"]
[Round "7"]
[White "Kostukov_Alex"]
[Black "zurzan"]
[Result "1-0"]
[WhiteElo "2308"]
[BlackElo "2027"]
[TimeControl "180+1"]
[EndTime "11:16:48 PDT"]
[Termination "Kostukov_Alex won by checkmate"]

1. g3 {[%clk 0:03:00.9]} 1... g6 {[%clk 0:02:59.8]} 2. Bg2 {[%clk 0:03:00.4]}
2... Bg7 {[%clk 0:03:00.1]} 3. c4 {[%clk 0:03:01]} 3... f5 {[%clk 0:02:59.7]} 4.
Nf3 {[%clk 0:03:01.7]} 4... Nf6 {[%clk 0:02:59.9]} 5. d4 {[%clk 0:03:02]} 5...
O-O {[%clk 0:02:59.9]} 6. O-O {[%clk 0:03:02.4]} 6... d6 {[%clk 0:03:00.8]} 7.
Nc3 {[%clk 0:03:02.5]} 7... c6 {[%clk 0:03:01.7]} 8. d5 {[%clk 0:03:01.3]} 8...
e5 {[%clk 0:03:00.7]} 9. dxe6 {[%clk 0:03:00.1]} 9... Bxe6 {[%clk 0:03:00.9]}
10. Nd2 {[%clk 0:02:52.4]} 10... Na6 {[%clk 0:02:57.3]} 11. a3 {[%clk
0:02:43.1]} 11... Qc7 {[%clk 0:02:55.4]} 12. Qc2 {[%clk 0:02:40.9]} 12... Rad8
{[%clk 0:02:52.4]} 13. e4 {[%clk 0:02:26.2]} 13... fxe4 {[%clk 0:02:48.8]} 14.
Ncxe4 {[%clk 0:02:22.3]} 14... Nxe4 {[%clk 0:02:49.1]} 15. Nxe4 {[%clk
0:02:23.2]} 15... Bf5 {[%clk 0:02:45.7]} 16. Bf4 {[%clk 0:01:22.2]} 16... Bxe4
{[%clk 0:02:44.9]} 17. Bxe4 {[%clk 0:01:21.1]} 17... Rde8 {[%clk 0:02:39.4]} 18.
Rad1 {[%clk 0:01:17.3]} 18... Be5 {[%clk 0:02:38.4]} 19. Bh6 {[%clk 0:01:13]}
19... Bg7 {[%clk 0:02:29.5]} 20. Be3 {[%clk 0:01:05.8]} 20... Qe7 {[%clk
0:02:18]} 21. Bg2 {[%clk 0:01:05.6]} 21... Nc5 {[%clk 0:02:10.6]} 22. b4 {[%clk
0:01:05.1]} 22... Ne4 {[%clk 0:02:00.6]} 23. Bxe4 {[%clk 0:01:00]} 23... Qxe4
{[%clk 0:02:00.6]} 24. Qxe4 {[%clk 0:01:00.1]} 24... Rxe4 {[%clk 0:02:01.2]} 25.
Rxd6 {[%clk 0:00:58.6]} 25... Rxc4 {[%clk 0:02:01.3]} 26. Bxa7 {[%clk
0:00:53.7]} 26... Be5 {[%clk 0:01:53.8]} 27. Rd7 {[%clk 0:00:52]} 27... Rf7
{[%clk 0:01:53.6]} 28. Rfd1 {[%clk 0:00:42.2]} 28... Bb2 {[%clk 0:01:30.3]} 29.
Rd8+ {[%clk 0:00:24.5]} 29... Kg7 {[%clk 0:01:29.6]} 30. R1d3 {[%clk 0:00:20.2]}
30... Rc1+ {[%clk 0:01:25.2]} 31. Kg2 {[%clk 0:00:20.3]} 31... Rc3 {[%clk
0:01:21.5]} 32. Rxc3 {[%clk 0:00:19.5]} 32... Bxc3 {[%clk 0:01:21.9]} 33. Bc5
{[%clk 0:00:19.8]} 33... Bb2 {[%clk 0:01:19.4]} 34. a4 {[%clk 0:00:19.8]} 34...
Ba3 {[%clk 0:01:18.4]} 35. a5 {[%clk 0:00:19.7]} 35... h5 {[%clk 0:01:15.3]} 36.
f4 {[%clk 0:00:18.1]} 36... Kf6 {[%clk 0:01:11.9]} 37. Rd6+ {[%clk 0:00:15.9]}
37... Kf5 {[%clk 0:01:09.9]} 38. Kf3 {[%clk 0:00:15.7]} 38... Bb2 {[%clk
0:00:59.4]} 39. h3 {[%clk 0:00:15.6]} 39... g5 {[%clk 0:00:03.7]} 40. g4+ {[%clk
0:00:16.5]} 40... hxg4+ {[%clk 0:00:04.4]} 41. hxg4# {[%clk 0:00:17]} 1-0

[Event "*** Titled Tuesday Blitz"]
[Site "Chess.com"]
[Date "2021.04.27"]
[Round "7"]
[White "DenLaz"]
[Black "Susal_De_Silva"]
[Result "1-0"]
[WhiteElo "2824"]
[BlackElo "2630"]
[TimeControl "180+1"]
[EndTime "11:16:49 PDT"]
[Termination "DenLaz won by resignation"]

1. d4 {[%clk 0:03:00.9]} 1... Nf6 {[%clk 0:03:00.3]} 2. c4 {[%clk 0:03:00.4]}
2... e6 {[%clk 0:03:00.7]} 3. Nf3 {[%clk 0:03:00.1]} 3... b6 {[%clk 0:03:00.6]}
4. a3 {[%clk 0:02:59.2]} 4... Bb7 {[%clk 0:03:01.5]} 5. Nc3 {[%clk 0:02:59.6]}
5... g6 {[%clk 0:03:01.8]} 6. Bf4 {[%clk 0:02:53.9]} 6... Bg7 {[%clk 0:03:01.5]}
7. e3 {[%clk 0:02:54.2]} 7... O-O {[%clk 0:03:01.6]} 8. Be2 {[%clk 0:02:51.5]}
8... d6 {[%clk 0:03:00.6]} 9. O-O {[%clk 0:02:50.6]} 9... Ne4 {[%clk 0:03:00.2]}
10. Nxe4 {[%clk 0:02:40.9]} 10... Bxe4 {[%clk 0:03:01.1]} 11. Rc1 {[%clk
0:02:41.1]} 11... Nd7 {[%clk 0:02:59.4]} 12. h3 {[%clk 0:02:37.7]} 12... Qe7
{[%clk 0:02:57.6]} 13. Bh2 {[%clk 0:02:36.4]} 13... f5 {[%clk 0:02:56]} 14. Nd2
{[%clk 0:02:34.5]} 14... Bb7 {[%clk 0:02:53.9]} 15. Bf3 {[%clk 0:02:30.2]} 15...
Bxf3 {[%clk 0:02:33.1]} 16. Qxf3 {[%clk 0:02:31.1]} 16... c5 {[%clk 0:02:27]}
17. Nb3 {[%clk 0:02:22]} 17... e5 {[%clk 0:02:23.4]} 18. Qd5+ {[%clk 0:02:18.1]}
18... Kh8 {[%clk 0:02:22.1]} 19. dxe5 {[%clk 0:02:17.5]} 19... Nxe5 {[%clk
0:02:23]} 20. Rfd1 {[%clk 0:02:16.2]} 20... Rad8 {[%clk 0:02:20.8]} 21. Nd2
{[%clk 0:02:13.6]} 21... Nf7 {[%clk 0:02:02.7]} 22. b4 {[%clk 0:02:10.9]} 22...
Bb2 {[%clk 0:01:58.4]} 23. Rb1 {[%clk 0:02:04.9]} 23... Bxa3 {[%clk 0:01:57.2]}
24. b5 {[%clk 0:02:05.4]} 24... Bb4 {[%clk 0:01:34.3]} 25. Nf3 {[%clk 0:01:51]}
25... Bc3 {[%clk 0:01:28.8]} 26. Rb3 {[%clk 0:01:39]} 26... Bg7 {[%clk
0:01:24.3]} 27. Rbd3 {[%clk 0:01:39.2]} 27... Qe4 {[%clk 0:01:22.6]} 28. R3d2
{[%clk 0:01:34.9]} 28... Bc3 {[%clk 0:01:12.2]} 29. Rd3 {[%clk 0:01:30.1]} 29...
Bg7 {[%clk 0:01:01.3]} 30. Nd2 {[%clk 0:01:25.2]} 30... Qxd5 {[%clk 0:00:45.3]}
31. Rxd5 {[%clk 0:01:26.1]} 31... Ne5 {[%clk 0:00:42.2]} 32. Bxe5 {[%clk
0:01:11.4]} 32... dxe5 {[%clk 0:00:41.4]} 33. Nf3 {[%clk 0:01:11.9]} 33... Rxd5
{[%clk 0:00:30.9]} 34. Rxd5 {[%clk 0:01:12.8]} 34... e4 {[%clk 0:00:31.1]} 35.
Ng5 {[%clk 0:01:11.4]} 35... Bf6 {[%clk 0:00:19.7]} 36. Ne6 {[%clk 0:01:10.5]}
36... Re8 {[%clk 0:00:19.8]} 37. Nc7 {[%clk 0:01:10]} 37... Re7 {[%clk
0:00:18.9]} 38. Rd8+ {[%clk 0:01:06.2]} 38... Kg7 {[%clk 0:00:18.8]} 39. Nd5
{[%clk 0:01:06.8]} 39... Rf7 {[%clk 0:00:18.7]} 40. Rd6 {[%clk 0:01:05.1]} 40...
Be5 {[%clk 0:00:17.6]} 41. Re6 {[%clk 0:01:05.4]} 41... Bc7 {[%clk 0:00:17.5]}
42. g4 {[%clk 0:01:04.8]} 42... Bb8 {[%clk 0:00:12.4]} 43. Re8 {[%clk 0:01:03]}
43... Bc7 {[%clk 0:00:12.2]} 44. Kg2 {[%clk 0:01:01]} 44... Bd6 {[%clk
0:00:11.6]} 45. Rd8 {[%clk 0:00:59.7]} 45... Be5 {[%clk 0:00:11.6]} 46. Re8
{[%clk 0:00:57.3]} 46... Bd6 {[%clk 0:00:11.4]} 47. gxf5 {[%clk 0:00:56.4]}
47... gxf5 {[%clk 0:00:12.3]} 48. h4 {[%clk 0:00:56.9]} 48... Bc7 {[%clk
0:00:12]} 49. Re6 {[%clk 0:00:54.5]} 49... Bb8 {[%clk 0:00:11.9]} 50. h5 {[%clk
0:00:54]} 50... Bc7 {[%clk 0:00:11.1]} 51. h6+ {[%clk 0:00:51.7]} 51... Kf8
{[%clk 0:00:11.4]} 52. Rc6 {[%clk 0:00:51.6]} 52... Kg8 {[%clk 0:00:08.3]} 53.
Rxc7 {[%clk 0:00:51]} 1-0

[Event "*** Titled Tuesday Blitz"]
[Site "Chess.com"]
[Date "2021.04.27"]
[Round "7"]
[White "JoachimMouhamad"]
[Black "nocnypako"]
[Result "0-1"]
[WhiteElo "2456"]
[BlackElo "2557"]
[TimeControl "180+1"]
[EndTime "11:16:49 PDT"]
[Termination "nocnypako won by resignation"]

1. e4 {[%clk 0:02:58.6]} 1... c5 {[%clk 0:02:58.1]} 2. Nf3 {[%clk 0:02:58.1]}
2... d6 {[%clk 0:02:57.8]} 3. d4 {[%clk 0:02:58.5]} 3... cxd4 {[%clk 0:02:57.7]}
4. Nxd4 {[%clk 0:02:59.4]} 4... Nf6 {[%clk 0:02:57.8]} 5. Nc3 {[%clk 0:02:59]}
5... a6 {[%clk 0:02:58.1]} 6. f3 {[%clk 0:02:59.2]} 6... e5 {[%clk 0:02:56.3]}
7. Nb3 {[%clk 0:02:59.6]} 7... h5 {[%clk 0:02:51.6]} 8. Be3 {[%clk 0:02:55.7]}
8... Be6 {[%clk 0:02:50.9]} 9. Nd5 {[%clk 0:02:55.5]} 9... Bxd5 {[%clk
0:02:49.4]} 10. exd5 {[%clk 0:02:56.4]} 10... Nbd7 {[%clk 0:02:49.2]} 11. Be2
{[%clk 0:02:52]} 11... g6 {[%clk 0:02:46.6]} 12. O-O {[%clk 0:02:51.1]} 12...
Bg7 {[%clk 0:02:45.1]} 13. Qd2 {[%clk 0:02:46.6]} 13... O-O {[%clk 0:02:43.6]}
14. Na5 {[%clk 0:02:43.5]} 14... Qc7 {[%clk 0:02:40.2]} 15. c4 {[%clk
0:02:42.5]} 15... e4 {[%clk 0:02:32.5]} 16. f4 {[%clk 0:02:41.1]} 16... Ng4
{[%clk 0:02:26.5]} 17. Bxg4 {[%clk 0:02:40.9]} 17... hxg4 {[%clk 0:02:27.4]} 18.
f5 {[%clk 0:02:20.2]} 18... Be5 {[%clk 0:02:03.9]} 19. Rae1 {[%clk 0:02:00.7]}
19... Nc5 {[%clk 0:01:50.1]} 20. Bh6 {[%clk 0:01:55.5]} 20... Rfe8 {[%clk
0:01:44.4]} 21. Qg5 {[%clk 0:01:47.9]} 21... Qxa5 {[%clk 0:01:29.9]} 22. fxg6
{[%clk 0:01:42.8]} 22... f6 {[%clk 0:01:28.8]} 23. Qh5 {[%clk 0:01:19.5]} 23...
Qc7 {[%clk 0:01:17.7]} 24. Be3 {[%clk 0:01:13.9]} 24... Nd3 {[%clk 0:01:08.1]}
25. Re2 {[%clk 0:01:13.3]} 25... Qd7 {[%clk 0:00:47.7]} 26. b3 {[%clk
0:01:11.7]} 26... b5 {[%clk 0:00:47.3]} 27. Rf5 {[%clk 0:01:07.6]} 27... bxc4
{[%clk 0:00:42.6]} 28. bxc4 {[%clk 0:00:58.3]} 28... Rab8 {[%clk 0:00:39.8]} 29.
g3 {[%clk 0:00:55.4]} 29... Rb1+ {[%clk 0:00:38.9]} 30. Kg2 {[%clk 0:00:55.9]}
30... Ne1+ {[%clk 0:00:19.8]} 31. Kf2 {[%clk 0:00:50.1]} 31... Nd3+ {[%clk
0:00:19.9]} 32. Kg2 {[%clk 0:00:50.1]} 32... Ne1+ {[%clk 0:00:18.4]} 33. Kf2
{[%clk 0:00:49.9]} 33... Nf3 {[%clk 0:00:19.3]} 34. Qh6 {[%clk 0:00:34.1]} 34...
Qg7 {[%clk 0:00:16.2]} 35. Qh5 {[%clk 0:00:29.8]} 35... Rh1 {[%clk 0:00:15.2]}
36. Bh6 {[%clk 0:00:27.8]} 36... Qb7 {[%clk 0:00:08.1]} 37. Qxg4 {[%clk
0:00:20.7]} 37... Bd4+ {[%clk 0:00:06.6]} 38. Kg2 {[%clk 0:00:20.4]} 38... Rxh2+
{[%clk 0:00:06.8]} 39. Kf1 {[%clk 0:00:20.7]} 39... Qb1+ {[%clk 0:00:06.4]} 0-1

[Event "*** Titled Tuesday Blitz"]
[Site "Chess.com"]
[Date "2021.04.27"]
[Round "7"]
[White "KyrgyzFighter"]
[Black "Kozok"]
[Result "1-0"]
[WhiteElo "2450"]
[BlackElo "2525"]
[TimeControl "180+1"]
[EndTime "11:16:49 PDT"]
[Termination "KyrgyzFighter won on time"]

1. c4 {[%clk 0:03:00.9]} 1... e5 {[%clk 0:02:53.5]} 2. Nc3 {[%clk 0:03:00.9]}
2... d6 {[%clk 0:02:52.5]} 3. g3 {[%clk 0:03:00.2]} 3... f5 {[%clk 0:02:52.5]}
4. Bg2 {[%clk 0:03:00.4]} 4... Nf6 {[%clk 0:02:52.3]} 5. e3 {[%clk 0:03:00.8]}
5... Be7 {[%clk 0:02:52.1]} 6. Nge2 {[%clk 0:03:01.3]} 6... O-O {[%clk
0:02:52.4]} 7. O-O {[%clk 0:03:01.4]} 7... Qe8 {[%clk 0:02:52.7]} 8. b4 {[%clk
0:02:54.2]} 8... c6 {[%clk 0:02:51.2]} 9. d3 {[%clk 0:02:51.1]} 9... Be6 {[%clk
0:02:42]} 10. Rb1 {[%clk 0:02:45.4]} 10... Qh5 {[%clk 0:02:34.2]} 11. b5 {[%clk
0:02:37.8]} 11... g5 {[%clk 0:02:28.5]} 12. bxc6 {[%clk 0:02:31.9]} 12... bxc6
{[%clk 0:02:29.4]} 13. Rb7 {[%clk 0:02:32]} 13... Nbd7 {[%clk 0:02:22.3]} 14. f4
{[%clk 0:02:07.2]} 14... d5 {[%clk 0:02:13]} 15. fxg5 {[%clk 0:02:03.6]} 15...
Qxg5 {[%clk 0:01:26.8]} 16. e4 {[%clk 0:02:01.6]} 16... Qh5 {[%clk 0:01:23.1]}
17. cxd5 {[%clk 0:01:47.8]} 17... cxd5 {[%clk 0:01:12.9]} 18. exd5 {[%clk
0:01:46.2]} 18... Ng4 {[%clk 0:01:06]} 19. h3 {[%clk 0:01:41]} 19... Bc5+ {[%clk
0:01:05.9]} 20. d4 {[%clk 0:01:39.7]} 20... exd4 {[%clk 0:01:06.6]} 21. Nxd4
{[%clk 0:01:33.6]} 21... Ndf6 {[%clk 0:00:55.5]} 22. Na4 {[%clk 0:01:24.7]}
22... Bxd4+ {[%clk 0:00:46.3]} 23. Qxd4 {[%clk 0:01:25.6]} 23... Rad8 {[%clk
0:00:44.7]} 24. hxg4 {[%clk 0:01:21.4]} 24... Qg6 {[%clk 0:00:31.2]} 25. gxf5
{[%clk 0:00:57.2]} 25... Bxf5 {[%clk 0:00:28.4]} 26. Bh6 {[%clk 0:00:35.7]}
26... Qxh6 {[%clk 0:00:20.2]} 27. Rxf5 {[%clk 0:00:34.5]} 27... Qg6 {[%clk
0:00:19.6]} 28. Qf4 {[%clk 0:00:16.2]} 28... Ng4 {[%clk 0:00:16.1]} 29. Rxf8+
{[%clk 0:00:06.7]} 29... Rxf8 {[%clk 0:00:16.1]} 30. Qe4 {[%clk 0:00:07.3]}
30... Rf1+ {[%clk 0:00:01.6]} 31. Kxf1 {[%clk 0:00:06]} 31... Qf6+ {[%clk
0:00:02.3]} 32. Qf4 {[%clk 0:00:05.2]} 32... Qa1+ {[%clk 0:00:02.8]} 33. Ke2
{[%clk 0:00:05.6]} 33... Qxa2+ {[%clk 0:00:03.3]} 34. Nb2 {[%clk 0:00:05.9]} 1-0

[Event "*** Titled Tuesday Blitz"]
[Site "Chess.com"]
[Date "2021.04.27"]
[Round "7"]
[White "SergeyShtyka"]
[Black "DFeco"]
[Result "0-1"]
[WhiteElo "2391"]
[BlackElo "2288"]
[TimeControl "180+1"]
[EndTime "11:16:51 PDT"]
[Termination "DFeco won on time"]

1. e4 {[%clk 0:02:57.3]} 1... e5 {[%clk 0:02:59.6]} 2. Nf3 {[%clk 0:02:56.5]}
2... Nc6 {[%clk 0:02:59.5]} 3. Nc3 {[%clk 0:02:56.5]} 3... Nf6 {[%clk
0:02:57.8]} 4. Bb5 {[%clk 0:02:56.7]} 4... Bd6 {[%clk 0:02:56.6]} 5. O-O {[%clk
0:02:56.2]} 5... O-O {[%clk 0:02:55]} 6. h3 {[%clk 0:02:55.7]} 6... a6 {[%clk
0:02:54.3]} 7. Be2 {[%clk 0:02:54.9]} 7... Nd4 {[%clk 0:02:50.4]} 8. d3 {[%clk
0:02:53.5]} 8... Ne6 {[%clk 0:02:45.3]} 9. Nd5 {[%clk 0:02:48.4]} 9... c6 {[%clk
0:02:28.2]} 10. Ne3 {[%clk 0:02:45.3]} 10... Nf4 {[%clk 0:02:23.6]} 11. Nf5
{[%clk 0:02:43.7]} 11... Bc7 {[%clk 0:02:23.1]} 12. g3 {[%clk 0:02:34.2]} 12...
Nxe2+ {[%clk 0:02:05.7]} 13. Qxe2 {[%clk 0:02:33.6]} 13... d5 {[%clk 0:02:06.6]}
14. g4 {[%clk 0:02:26]} 14... dxe4 {[%clk 0:02:01.7]} 15. dxe4 {[%clk
0:02:26.3]} 15... Bxf5 {[%clk 0:02:00]} 16. gxf5 {[%clk 0:02:25.1]} 16... Kh8
{[%clk 0:01:59.2]} 17. Bg5 {[%clk 0:02:24.7]} 17... h6 {[%clk 0:01:54.4]} 18.
Bh4 {[%clk 0:02:22.7]} 18... Qe7 {[%clk 0:01:53]} 19. Rad1 {[%clk 0:02:19.8]}
19... Rad8 {[%clk 0:01:52.1]} 20. Rd3 {[%clk 0:02:14.1]} 20... Rxd3 {[%clk
0:01:50.2]} 21. cxd3 {[%clk 0:02:13.3]} 21... Qd6 {[%clk 0:01:49.6]} 22. Bg3
{[%clk 0:01:54.7]} 22... Qc5 {[%clk 0:01:43.8]} 23. d4 {[%clk 0:01:53.9]} 23...
Qb4 {[%clk 0:01:34.5]} 24. a3 {[%clk 0:01:50.2]} 24... Qa4 {[%clk 0:01:32.2]}
25. Re1 {[%clk 0:01:36.4]} 25... Ba5 {[%clk 0:01:25.5]} 26. b4 {[%clk
0:01:28.9]} 26... Bb6 {[%clk 0:01:22.1]} 27. dxe5 {[%clk 0:01:26.4]} 27... Nh5
{[%clk 0:01:21.5]} 28. Kg2 {[%clk 0:01:10.6]} 28... Qxa3 {[%clk 0:01:14.5]} 29.
Rb1 {[%clk 0:01:00.2]} 29... Nxg3 {[%clk 0:01:07.7]} 30. fxg3 {[%clk 0:01:00.3]}
30... Rd8 {[%clk 0:01:05.8]} 31. f6 {[%clk 0:00:58.4]} 31... g5 {[%clk
0:00:58.6]} 32. Nxg5 {[%clk 0:00:54.2]} 32... hxg5 {[%clk 0:00:54.4]} 33. Qh5+
{[%clk 0:00:53.9]} 33... Kg8 {[%clk 0:00:54.4]} 34. Qxg5+ {[%clk 0:00:44.7]}
34... Kf8 {[%clk 0:00:53.9]} 35. Qg7+ {[%clk 0:00:41.7]} 35... Ke8 {[%clk
0:00:53.8]} 36. Qg8+ {[%clk 0:00:40.3]} 36... Kd7 {[%clk 0:00:53.7]} 37. Rd1+
{[%clk 0:00:39.7]} 37... Kc8 {[%clk 0:00:53.8]} 38. Rxd8+ {[%clk 0:00:39]} 38...
Bxd8 {[%clk 0:00:53.8]} 39. Qxf7 {[%clk 0:00:38.3]} 39... Qb2+ {[%clk
0:00:53.9]} 40. Kf3 {[%clk 0:00:38.3]} 40... Qxe5 {[%clk 0:00:53.4]} 41. Kg4
{[%clk 0:00:09.7]} 41... Qxe4+ {[%clk 0:00:46.1]} 42. Kh5 {[%clk 0:00:08.4]}
42... Qf5+ {[%clk 0:00:44]} 43. Kh6 {[%clk 0:00:06.2]} 43... Qxh3+ {[%clk
0:00:43.2]} 44. Kg7 {[%clk 0:00:05.8]} 44... Qxg3+ {[%clk 0:00:42.9]} 45. Kf8
{[%clk 0:00:06]} 45... Qd6+ {[%clk 0:00:41.9]} 46. Kg8 {[%clk 0:00:05.5]} 46...
Qxf6 {[%clk 0:00:41.2]} 47. Qe8 {[%clk 0:00:05.3]} 47... Qg5+ {[%clk 0:00:39.1]}
48. Kh7 {[%clk 0:00:05.5]} 48... Qe7+ {[%clk 0:00:38.6]} 0-1

[Event "*** Titled Tuesday Blitz"]
[Site "Chess.com"]
[Date "2021.04.27"]
[Round "7"]
[White "rpragchess"]
[Black "K_A_S_T_O_R"]
[Result "1-0"]
[WhiteElo "2904"]
[BlackElo "2779"]
[TimeControl "180+1"]
[EndTime "11:16:52 PDT"]
[Termination "rpragchess won by checkmate"]

1. Nf3 {[%clk 0:03:00.9]} 1... c5 {[%clk 0:02:59.4]} 2. g3 {[%clk 0:02:57.8]}
2... b6 {[%clk 0:02:59]} 3. Bg2 {[%clk 0:02:57.8]} 3... Bb7 {[%clk 0:02:59.6]}
4. O-O {[%clk 0:02:57.7]} 4... Nf6 {[%clk 0:03:00.1]} 5. b3 {[%clk 0:02:50.5]}
5... e6 {[%clk 0:02:58.6]} 6. Bb2 {[%clk 0:02:50.7]} 6... Be7 {[%clk 0:02:59.2]}
7. c4 {[%clk 0:02:50]} 7... d6 {[%clk 0:02:59.1]} 8. Nc3 {[%clk 0:02:49.6]} 8...
a6 {[%clk 0:02:58.7]} 9. Re1 {[%clk 0:02:49.1]} 9... Qc7 {[%clk 0:02:57.2]} 10.
e4 {[%clk 0:02:48.7]} 10... O-O {[%clk 0:02:57.7]} 11. d4 {[%clk 0:02:47]} 11...
cxd4 {[%clk 0:02:58.3]} 12. Nxd4 {[%clk 0:02:47.9]} 12... Nbd7 {[%clk
0:02:58.2]} 13. Rc1 {[%clk 0:02:48.5]} 13... Rac8 {[%clk 0:02:57.3]} 14. Qd2
{[%clk 0:02:47.8]} 14... Nc5 {[%clk 0:02:56]} 15. Rcd1 {[%clk 0:02:35.4]} 15...
Qb8 {[%clk 0:02:55.8]} 16. Qe3 {[%clk 0:02:32.9]} 16... Rfe8 {[%clk 0:02:55.3]}
17. h3 {[%clk 0:02:26]} 17... Ba8 {[%clk 0:02:52.1]} 18. f4 {[%clk 0:02:24.4]}
18... g6 {[%clk 0:02:47.5]} 19. Kh2 {[%clk 0:02:20.1]} 19... Bf8 {[%clk
0:02:45.5]} 20. e5 {[%clk 0:02:08.8]} 20... Bxg2 {[%clk 0:02:37.7]} 21. Kxg2
{[%clk 0:02:08.5]} 21... dxe5 {[%clk 0:02:33.7]} 22. fxe5 {[%clk 0:02:08.4]}
22... Nh5 {[%clk 0:02:34.1]} 23. b4 {[%clk 0:01:51.9]} 23... Nd7 {[%clk
0:02:26.1]} 24. g4 {[%clk 0:01:46.7]} 24... Ng7 {[%clk 0:02:21.4]} 25. Ne4
{[%clk 0:01:33.6]} 25... Be7 {[%clk 0:01:50.8]} 26. Nf3 {[%clk 0:01:29.5]} 26...
Red8 {[%clk 0:01:37.2]} 27. Rc1 {[%clk 0:01:17.5]} 27... Qb7 {[%clk 0:01:30.5]}
28. Qf4 {[%clk 0:01:00.6]} 28... Bxb4 {[%clk 0:01:22.7]} 29. Red1 {[%clk
0:00:56.9]} 29... Be7 {[%clk 0:01:21.8]} 30. Kg3 {[%clk 0:00:52.9]} 30... Nc5
{[%clk 0:01:17.5]} 31. Nd6 {[%clk 0:00:46.4]} 31... Bxd6 {[%clk 0:01:14.3]} 32.
exd6 {[%clk 0:00:47.3]} 32... Ne4+ {[%clk 0:01:05.9]} 33. Kh2 {[%clk 0:00:47.1]}
33... f5 {[%clk 0:01:06.3]} 34. gxf5 {[%clk 0:00:34.8]} 34... exf5 {[%clk
0:01:03.6]} 35. Qe5 {[%clk 0:00:26.9]} 35... Rc5 {[%clk 0:00:50.8]} 36. Rd5
{[%clk 0:00:18.4]} 36... Qf7 {[%clk 0:00:34.9]} 37. Bd4 {[%clk 0:00:09.9]} 37...
Re8 {[%clk 0:00:30.2]} 38. d7 {[%clk 0:00:10]} 38... Rxe5 {[%clk 0:00:21.2]} 39.
Nxe5 {[%clk 0:00:09.9]} 39... Rxd5 {[%clk 0:00:17.4]} 40. cxd5 {[%clk
0:00:10.2]} 40... Ne6 {[%clk 0:00:16.9]} 41. Nxf7 {[%clk 0:00:09.5]} 41... Nxd4
{[%clk 0:00:14.9]} 42. d8=Q+ {[%clk 0:00:09.2]} 42... Kxf7 {[%clk 0:00:15.4]}
43. Rc7# {[%clk 0:00:09.5]} 1-0